fUSD/lending_fUSD_20240205
["ID","MTS","AMOUNT","RATE_DAILY","PERIOD"]
[313328397,1707161459199,-500.0,0.00042739,7]
[313328398,1707161459208,-495.05991615,0.00042739,7]
[313328399,1707161459218,-500.0,0.00042739,7]
[313328400,1707161459228,-500.0,0.00042739,7]
[313328401,1707161459237,-500.0,0.00042739,7]
[313328402,1707161459247,-500.0,0.00042739,2]
[313328403,1707161459256,-511.21114539,0.00042739,7]
[313328404,1707161459266,-500.0,0.00042739,7]
[313328405,1707161459275,-150.0,0.00042739,7]
[313328406,1707161459284,-928.39,0.00042739,7]
[313328407,1707161459293,-500.0,0.00042739,7]
[313328408,1707161459303,-500.0,0.00042739,7]
[313328409,1707161459313,-898.8,0.00042739,7]
[313328410,1707161459333,-1227.72,0.00042739,7]
[313328411,1707161459343,-500.0,0.00042739,7]
[313328412,1707161459353,-500.0,0.00042739,7]
[313328413,1707161459363,-961.96,0.00042739,7]
[313328414,1707161459373,-856.15,0.00042739,7]
[313328415,1707161459383,-1000.0,0.00042739,7]
[313328416,1707161459393,-500.0,0.00042739,7]
[313328417,1707161459403,-610.16,0.00042739,7]
[313328418,1707161459413,-500.0,0.00042739,7]
[313328419,1707161459423,-4208.35,0.00042739,7]
[313328420,1707161459434,-500.0,0.00042739,7]
[313328421,1707161459445,-500.0,0.00042739,7]
[313328422,1707161459456,-2424.94,0.00042739,7]
[313328423,1707161459466,-1147.57,0.00042739,7]
[313328424,1707161459477,-719.89,0.00042739,7]
[313328425,1707161459486,-872.38,0.00042739,7]
[313328426,1707161459497,-500.0,0.00042739,7]
[313328427,1707161459507,-1792.12,0.00042739,7]
[313328428,1707161459517,-500.0,0.00042739,7]
[313328429,1707161459527,-258.78,0.00042739,7]
[313328430,1707161459537,-500.0,0.00042739,7]
[313328431,1707161459547,-500.0,0.00042739,7]
[313328432,1707161459557,-500.0,0.00042739,7]
[313328433,1707161459566,-3479.72,0.00042739,7]
[313328434,1707161459576,-524.2,0.00042739,7]
[313328435,1707161459587,-752.35,0.00042739,7]
[313328436,1707161459597,-500.0,0.00042739,7]
[313328437,1707161459606,-614.92,0.00042739,7]
[313328438,1707161459615,-689.61,0.00042739,7]
[313328439,1707161459625,-663.67,0.00042739,7]
[313328440,1707161459634,-500.0,0.00042739,7]
[313328441,1707161459644,-1447.39,0.00042739,7]
[313328442,1707161459654,-500.0,0.00042739,7]
[313328443,1707161459665,-2445.56,0.00042739,7]
[313328444,1707161459675,-1389.3,0.00042739,7]
[313328445,1707161459686,-237.14,0.00042739,7]
[313328446,1707161459695,-2095.64,0.00042739,7]
[313328447,1707161459706,-500.0,0.00042739,7]
[313328448,1707161459716,-500.0,0.00042739,7]
[313328449,1707161459726,-500.0,0.00042739,7]
[313328450,1707161459735,-1082.37,0.00042739,7]
[313328451,1707161459745,-2824.19,0.00042739,7]
[313328452,1707161459754,-903.41,0.00042739,7]
[313328453,1707161459763,-1032.35,0.00042739,7]
[313328454,1707161459773,-386.3241343,0.00042739,7]
[313328455,1707161459782,-4354.94,0.00042739,7]
[313328456,1707161459792,-500.0,0.00042739,7]
[313328457,1707161459803,-265.06122326,0.00042739,7]
[313328458,1707161459812,-500.0,0.00042739,7]
[313328459,1707161459822,-500.0,0.00042739,7]
[313328460,1707161459832,-668.9,0.00042739,7]
[313328461,1707161459842,-607.08,0.00042739,7]
[313328462,1707161459852,-996.39,0.00042739,7]
[313328463,1707161459861,-500.0,0.00042739,7]
[313328464,1707161459871,-500.0,0.00042739,7]
[313328465,1707161459881,-568.52,0.00042739,7]
[313328466,1707161459890,-500.0,0.00042739,7]
[313328467,1707161459900,-2415.07,0.00042739,7]
[313328468,1707161459909,-523.05,0.00042739,7]
[313328469,1707161459919,-500.0,0.00042739,7]
[313328470,1707161459929,-1484.19,0.00042739,7]
[313328471,1707161459939,-831.07,0.00042739,7]
[313328472,1707161459949,-543.21,0.00042739,7]
[313328473,1707161459959,-3180.88,0.00042739,7]
[313328474,1707161459969,-784.02,0.00042739,7]
[313328475,1707161459979,-1184.54,0.00042739,7]
[313328476,1707161459989,-500.0,0.00042739,7]
[313328477,1707161459999,-1320.35,0.00042739,7]
[313328478,1707161460008,-520.58,0.00042739,7]
[313328479,1707161460018,-500.0,0.00042739,7]
[313328480,1707161460028,-500.0,0.00042739,7]
[313328481,1707161460037,-500.0,0.00042739,7]
[313328482,1707161460048,-500.0,0.00042739,7]
[313328483,1707161460058,-500.0,0.00042739,7]
[313328484,1707161460068,-500.0,0.00042739,7]
[313328485,1707161460078,-500.0,0.00042739,7]
[313328486,1707161460092,-580.1,0.00042739,7]
[313328487,1707161460102,-727.02,0.00042739,7]
[313328488,1707161460111,-500.0,0.00042739,7]
[313328489,1707161460197,-500.0,0.00042739,7]
[313328490,1707161460207,-500.0,0.00042739,7]
[313328491,1707161460216,-648.1,0.00042739,7]
[313328492,1707161460226,-500.0,0.00042739,7]
[313328493,1707161460235,-9649.71,0.00042739,7]
[313328494,1707161460245,-540.17,0.00042739,7]
[313328495,1707161460254,-4246.7,0.00042739,7]
[313328496,1707161460263,-500.0,0.00042739,7]
[313328497,1707161460273,-5144.37,0.00042739,7]
[313328498,1707161460282,-575.28,0.00042739,7]
[313328499,1707161460291,-531.93,0.00042739,7]
[313328500,1707161460301,-1687.02,0.00042739,7]
[313328501,1707161460310,-699.82,0.00042739,7]
[313328502,1707161460319,-500.0,0.00042739,7]
[313328503,1707161460329,-828.59,0.00042739,7]
[313328504,1707161460339,-899.71,0.00042739,7]
[313328505,1707161460348,-387.25964601,0.00042739,7]
[313328506,1707161460358,-500.0,0.00042739,7]
[313328507,1707161460367,-500.0,0.00042739,7]
[313328508,1707161460376,-701.7,0.00042739,7]
[313328509,1707161460385,-500.0,0.00042739,7]
[313328510,1707161460394,-500.0,0.00042739,7]
[313328511,1707161460403,-1300.69,0.00042739,7]
[313328512,1707161460413,-830.8,0.00042739,7]
[313328513,1707161460422,-530.48,0.00042739,7]
[313328514,1707161460432,-500.0,0.00042739,7]
[313328515,1707161460441,-500.0,0.00042739,7]
[313328516,1707161460450,-500.0,0.00042739,2]
[313328517,1707161460460,-1935.78,0.00042739,7]
[313328518,1707161460469,-2018.2,0.00042739,7]
[313328519,1707161460479,-792.37,0.00042739,7]
[313328520,1707161460488,-1268.7,0.00042739,7]
[313328521,1707161460498,-610.86,0.00042739,7]
[313328522,1707161460506,-500.0,0.00042739,7]
[313328523,1707161460516,-500.0,0.00042739,7]
[313328524,1707161460525,-500.0,0.00042739,7]
[313328525,1707161460534,-500.0,0.00042739,7]
[313328526,1707161460544,-500.0,0.00042739,7]
[313328527,1707161460552,-650.59,0.00042739,7]
[313328528,1707161460562,-775.4,0.00042739,7]
[313328529,1707161460571,-500.0,0.00042739,7]
[313328530,1707161460580,-500.0,0.00042739,7]
[313328531,1707161460589,-917.32,0.00042739,7]
[313328532,1707161460598,-1038.49,0.00042739,7]
[313328533,1707161460608,-519.60635601,0.00042739,7]
[313328534,1707161460616,-500.0,0.00042739,7]
[313328535,1707161460625,-609.62,0.00042739,7]
[313328536,1707161460635,-500.0,0.00042739,7]
[313328537,1707161460644,-670.92,0.00042739,7]
[313328538,1707161460653,-500.0,0.00042739,7]
[313328539,1707161460662,-1314.85,0.00042739,5]
[313328540,1707161460672,-1809.16,0.00042739,7]
[313328541,1707161460681,-1573.94,0.00042739,7]
[313328542,1707161460690,-1499.56,0.00042739,7]
[313328543,1707161460700,-834.46,0.00042739,7]
[313328544,1707161460709,-1580.41,0.00042739,7]
[313328545,1707161460719,-500.0,0.00042739,7]
[313328546,1707161460729,-500.0,0.00042739,7]
[313328547,1707161460738,-500.0,0.00042739,7]
[313328548,1707161460747,-500.0,0.00042739,7]
[313328549,1707161460756,-500.0,0.00042739,7]
[313328550,1707161460765,-500.0,0.00042739,7]
[313328551,1707161460774,-1788.86,0.00042739,7]
[313328552,1707161460783,-665.49,0.00042739,7]
[313328553,1707161460792,-500.0,0.00042739,2]
[313328554,1707161460804,-500.0,0.00042739,7]
[313328555,1707161460814,-500.0,0.00042739,7]
[313328556,1707161460823,-500.0,0.00042739,7]
[313328557,1707161460832,-500.0,0.00042739,7]
[313328558,1707161460841,-6953.52,0.00042739,7]
[313328559,1707161460850,-594.23,0.00042739,7]
[313328560,1707161460860,-500.0,0.00042739,7]
[313328561,1707161460870,-643.79,0.00042739,7]
[313328562,1707161460879,-1787.48,0.00042739,7]
[313328563,1707161460889,-626.24,0.00042739,7]
[313328564,1707161460898,-1058.6,0.00042739,5]
[313328565,1707161460907,-12499.48,0.00042739,7]
[313328566,1707161460917,-1008.11,0.00042739,7]
[313328567,1707161460927,-500.0,0.00042739,7]
[313328568,1707161460936,-156.61,0.00042747,2]
[313328569,1707161460946,-1000.0,0.00042748,15]
[313328570,1707161460955,-2810.4,0.000428,7]
[313328571,1707161460964,-3609.7,0.000428,7]
[313328572,1707161460973,-1500.0,0.000429,12]
[313328573,1707161460983,-50000.0,0.00043,23]
[313328574,1707161460993,-600.0,0.00043,44]
[313328575,1707161461003,-2000.0,0.00043,2]
[313328576,1707161461013,-526.035686,0.00043,14]
[313328577,1707161461023,-789.0264754,0.00043,2]
[313328578,1707161461034,-275.5,0.00043,3]
[313328579,1707161461045,-1760.19760662,0.00043081,4]
[313328580,1707161461054,-927.24703561,0.00043081,4]
[313328581,1707161461064,-1090.31392352,0.0004315,36]
[313328582,1707161461075,-150.25,0.00043151,2]
[313328583,1707161461085,-8876.94,0.000432,7]
[313328584,1707161461097,-331.82563408,0.00043286,4]
[313328585,1707161461106,-242.85775935,0.00043286,4]
[313328586,1707161461115,-500.0,0.00043287,7]
[313328587,1707161461124,-500.0,0.00043287,7]
[313328588,1707161461134,-500.0,0.00043287,7]
[313328589,1707161461144,-579.22,0.00043287,7]
[313328590,1707161461154,-500.0,0.00043287,7]
[313328591,1707161461163,-524.88,0.00043287,7]
[313328592,1707161461173,-907.38,0.00043287,7]
[313328593,1707161461183,-793.66,0.00043287,7]
[313328594,1707161461193,-828.69,0.00043287,2]
[313328595,1707161461203,-500.0,0.00043287,20]
[313328596,1707161461213,-600.66543002,0.00043287,7]
[313328597,1707161461223,-500.0,0.00043287,7]
[313328598,1707161461234,-500.0,0.00043287,7]
[313328599,1707161461243,-760.42,0.00043287,7]
[313328600,1707161461253,-500.0,0.00043287,7]
[313328601,1707161461262,-500.0,0.00043287,7]
[313328602,1707161461271,-500.0,0.00043287,7]
[313328603,1707161461281,-500.0,0.00043287,7]
[313328604,1707161461290,-322.86727676,0.00043287,7]
[313328605,1707161461300,-500.0,0.00043287,7]
[313328606,1707161461310,-500.0,0.00043287,7]
[313328607,1707161461319,-500.0,0.00043287,2]
[313328608,1707161461328,-1171.91,0.00043287,7]
[313328609,1707161461337,-500.0,0.00043287,7]
[313328610,1707161461347,-500.0,0.00043287,7]
[313328611,1707161461357,-500.0,0.00043287,7]
[313328612,1707161461367,-1193.87,0.00043287,7]
[313328613,1707161461376,-579.7,0.00043287,7]
[313328614,1707161461386,-1047.76,0.00043287,7]
[313328615,1707161461395,-425.73706017,0.00043287,7]
[313328616,1707161461405,-500.0,0.00043287,7]
[313328617,1707161461415,-1195.13,0.00043287,7]
[313328618,1707161461425,-500.0,0.00043287,7]
[313328619,1707161461435,-968.9,0.00043287,7]
[313328620,1707161461445,-500.0,0.00043287,7]
[313328621,1707161461454,-500.0,0.00043287,7]
[313328622,1707161461464,-284.99200444,0.00043287,7]
[313328623,1707161461477,-500.0,0.00043287,7]
[313328624,1707161461486,-500.0,0.00043287,2]
[313328625,1707161461496,-500.0,0.00043287,7]
[313328626,1707161461506,-928.39,0.00043287,7]
[313328627,1707161461515,-500.0,0.00043287,7]
[313328628,1707161461525,-263.84,0.00043287,7]
[313328629,1707161461534,-898.8,0.00043287,7]
[313328630,1707161461544,-1227.72,0.00043287,7]
[313328631,1707161461553,-645.97547233,0.00043287,7]
[313328632,1707161461563,-500.0,0.00043287,7]
[313328633,1707161461573,-961.96,0.00043287,7]
[313328634,1707161461582,-856.15,0.00043287,7]
[313328635,1707161461592,-1000.0,0.00043287,7]
[313328636,1707161461602,-610.16,0.00043287,7]
[313328637,1707161461611,-500.0,0.00043287,7]
[313328638,1707161461621,-4208.35,0.00043287,7]
[313328639,1707161461631,-500.0,0.00043287,7]
[313328640,1707161461642,-500.0,0.00043287,7]
[313328641,1707161461651,-2424.94,0.00043287,7]
[313328642,1707161461661,-1147.57,0.00043287,7]
[313328643,1707161461671,-719.89,0.00043287,7]
[313328644,1707161461682,-872.38,0.00043287,7]
[313328645,1707161461692,-500.0,0.00043287,7]
[313328646,1707161461701,-500.0,0.00043287,7]
[313328647,1707161461710,-500.0,0.00043287,7]
[313328648,1707161461721,-500.0,0.00043287,7]
[313328649,1707161461731,-3479.72,0.00043287,7]
[313328650,1707161461742,-524.2,0.00043287,7]
[313328651,1707161461753,-752.35,0.00043287,7]
[313328652,1707161461762,-500.0,0.00043287,7]
[313328653,1707161461772,-1792.12,0.00043287,7]
[313328654,1707161461781,-614.92,0.00043287,7]
[313328655,1707161461790,-689.61,0.00043287,7]
[313328656,1707161461800,-663.67,0.00043287,7]
[313328657,1707161461809,-500.0,0.00043287,7]
[313328658,1707161461819,-1447.39,0.00043287,7]
[313328659,1707161461829,-500.0,0.00043287,7]
[313328660,1707161461840,-2445.56,0.00043287,7]
[313328661,1707161461849,-1389.3,0.00043287,7]
[313328662,1707161461859,-2095.64,0.00043287,7]
[313328663,1707161461869,-500.0,0.00043287,7]
[313328664,1707161461878,-500.0,0.00043287,7]
[313328665,1707161461888,-500.0,0.00043287,7]
[313328666,1707161461897,-1082.37,0.00043287,7]
[313328667,1707161461909,-2824.19,0.00043287,7]
[313328668,1707161461919,-903.41,0.00043287,7]
[313328669,1707161461929,-1032.35,0.00043287,7]
[313328670,1707161461938,-4354.94,0.00043287,7]
[313328671,1707161461948,-208.95,0.00043287,7]
[313328672,1707161461958,-500.0,0.00043287,7]
[313328673,1707161461969,-500.0,0.00043287,7]
[313328674,1707161461980,-668.9,0.00043287,7]
[313328675,1707161461992,-607.08,0.00043287,7]
[313328676,1707161462001,-996.39,0.00043287,7]
[313328677,1707161462011,-500.0,0.00043287,7]
[313328678,1707161462022,-500.0,0.00043287,7]
[313328679,1707161462032,-568.52,0.00043287,7]
[313328680,1707161462043,-500.0,0.00043287,7]
[313328681,1707161462053,-2415.07,0.00043287,7]
[313328682,1707161462063,-500.0,0.00043287,7]
[313328683,1707161462072,-1484.19,0.00043287,7]
[313328684,1707161462083,-831.07,0.00043287,7]
[313328685,1707161462093,-543.21,0.00043287,7]
[313328686,1707161462102,-3180.88,0.00043287,7]
[313328687,1707161462112,-784.02,0.00043287,7]
[313328688,1707161462122,-1184.54,0.00043287,7]
[313328689,1707161462132,-500.0,0.00043287,7]
[313328690,1707161462141,-1320.35,0.00043287,7]
[313328691,1707161462151,-520.58,0.00043287,7]
[313328692,1707161462160,-500.0,0.00043287,7]
[313328693,1707161462171,-500.0,0.00043287,7]
[313328694,1707161462181,-500.0,0.00043287,7]
[313328695,1707161462191,-500.0,0.00043287,7]
[313328696,1707161462201,-500.0,0.00043287,7]
[313328697,1707161462211,-500.0,0.00043287,7]
[313328698,1707161462221,-500.0,0.00043287,7]
[313328699,1707161462231,-580.1,0.00043287,7]
[313328700,1707161462241,-727.02,0.00043287,7]
[313328701,1707161462250,-500.0,0.00043287,7]
[313328702,1707161462260,-500.0,0.00043287,7]
[313328703,1707161462271,-648.1,0.00043287,7]
[313328704,1707161462281,-500.0,0.00043287,7]
[313328705,1707161462291,-9649.71,0.00043287,7]
[313328706,1707161462301,-4246.7,0.00043287,7]
[313328707,1707161462311,-188.52633862,0.00043287,7]
[313328708,1707161462321,-5144.37,0.00043287,7]
[313328709,1707161462331,-575.28,0.00043287,7]
[313328710,1707161462341,-531.93,0.00043287,7]
[313328711,1707161462350,-1687.02,0.00043287,7]
[313328712,1707161462360,-699.82,0.00043287,7]
[313328713,1707161462370,-500.0,0.00043287,7]
[313328714,1707161462380,-828.59,0.00043287,7]
[313328715,1707161462390,-899.71,0.00043287,7]
[313328716,1707161462400,-500.0,0.00043287,7]
[313328717,1707161462410,-500.0,0.00043287,7]
[313328718,1707161462420,-701.7,0.00043287,7]
[313328719,1707161462429,-500.0,0.00043287,7]
[313328720,1707161462439,-500.0,0.00043287,7]
[313328721,1707161462449,-1300.69,0.00043287,7]
[313328722,1707161462459,-830.8,0.00043287,7]
[313328723,1707161462468,-530.48,0.00043287,7]
[313328724,1707161462478,-500.0,0.00043287,7]
[313328725,1707161462488,-500.0,0.00043287,7]
[313328726,1707161462498,-500.0,0.00043287,2]
[313328727,1707161462509,-1935.78,0.00043287,7]
[313328728,1707161462518,-2018.2,0.00043287,7]
[313328729,1707161462528,-792.37,0.00043287,7]
[313328730,1707161462537,-1268.7,0.00043287,7]
[313328731,1707161462547,-610.86,0.00043287,7]
[313328732,1707161462557,-500.0,0.00043287,7]
[313328733,1707161462566,-500.0,0.00043287,7]
[313328734,1707161462576,-500.0,0.00043287,7]
[313328735,1707161462585,-500.0,0.00043287,7]
[313328736,1707161462595,-650.59,0.00043287,7]
[313328737,1707161462606,-500.0,0.00043287,7]
[313328738,1707161462616,-775.4,0.00043287,7]
[313328739,1707161462626,-500.0,0.00043287,7]
[313328740,1707161462636,-500.0,0.00043287,7]
[313328741,1707161462645,-917.32,0.00043287,7]
[313328742,1707161462655,-1038.49,0.00043287,7]
[313328743,1707161462664,-500.0,0.00043287,7]
[313328744,1707161462675,-500.0,0.00043287,7]
[313328745,1707161462685,-609.62,0.00043287,7]
[313328746,1707161462695,-586.13120366,0.00043287,7]
[313328747,1707161462705,-670.92,0.00043287,7]
[313328748,1707161462715,-1314.85,0.00043287,5]
[313328749,1707161462726,-1809.16,0.00043287,7]
[313328750,1707161462735,-1573.94,0.00043287,7]
[313328751,1707161462745,-834.46,0.00043287,7]
[313328752,1707161462754,-1499.56,0.00043287,7]
[313328753,1707161462765,-1580.41,0.00043287,7]
[313328754,1707161462775,-559.12,0.00043287,7]
[313328755,1707161462785,-500.0,0.00043287,7]
[313328756,1707161462795,-500.0,0.00043287,7]
[313328757,1707161462815,-500.0,0.00043287,7]
[313328758,1707161462828,-500.0,0.00043287,7]
[313328759,1707161462839,-500.0,0.00043287,7]
[313328760,1707161462850,-1788.86,0.00043287,7]
[313328761,1707161462861,-665.49,0.00043287,7]
[313328762,1707161462872,-500.0,0.00043287,2]
[313328763,1707161462883,-500.0,0.00043287,7]
[313328764,1707161462893,-500.0,0.00043287,7]
[313328765,1707161462904,-500.0,0.00043287,7]
[313328766,1707161462914,-500.0,0.00043287,7]
[313328767,1707161462925,-6953.52,0.00043287,7]
[313328768,1707161462936,-594.23,0.00043287,7]
[313328769,1707161462947,-500.0,0.00043287,7]
[313328770,1707161462958,-643.79,0.00043287,7]
[313328771,1707161462968,-1787.48,0.00043287,7]
[313328772,1707161462979,-626.24,0.00043287,7]
[313328773,1707161462989,-1058.6,0.00043287,5]
[313328774,1707161463000,-12499.48,0.00043287,7]
[313328775,1707161463010,-1008.11,0.00043287,7]
[313328776,1707161463020,-573.31,0.00043287,7]
[313328777,1707161463031,-151.15186373,0.00043298,2]
[313328778,1707161463042,-2810.4,0.000433,7]
[313328779,1707161463052,-3609.7,0.000433,7]
[313328780,1707161463062,-399.0,0.0004335,2]
[313328781,1707161463072,-1000.0,0.000434,2]
[313328782,1707161463084,-395.38392568,0.00043403,5]
[313328783,1707161463094,-1124.63383169,0.00043473,5]
[313328784,1707161463106,-2001.22,0.00043645,2]
[313328785,1707161463116,-9378.24,0.000437,30]
[313328786,1707161463127,-206.0,0.0004372,33]
[313328787,1707161463137,-700.0,0.0004377,3]
[313328788,1707161463148,-1009.2859023,0.000438,2]
[313328789,1707161463158,-204.73,0.000438,2]
[313328790,1707161463168,-300.0,0.000438,2]
[313328791,1707161463180,-152.0,0.00043818,3]
[313328792,1707161463190,-500.0,0.00043835,7]
[313328793,1707161463201,-500.0,0.00043835,7]
[313328794,1707161463211,-500.0,0.00043835,7]
[313328795,1707161463222,-579.22,0.00043835,7]
[313328796,1707161463395,-500.0,0.00043835,7]
[313328797,1707161463405,-524.88,0.00043835,7]
[313328798,1707161463414,-907.38,0.00043835,7]
[313328799,1707161463425,-793.66,0.00043835,7]
[313328800,1707161463434,-300.0,0.00043835,2]
[313328801,1707161463444,-828.69,0.00043835,2]
[313328802,1707161463454,-500.0,0.00043835,20]
[313328803,1707161463464,-500.0,0.00043835,7]
[313328804,1707161463474,-500.0,0.00043835,7]
[313328805,1707161463484,-760.42,0.00043835,7]
[313328806,1707161463493,-500.0,0.00043835,7]
[313328807,1707161463503,-500.0,0.00043835,7]
[313328808,1707161463513,-500.0,0.00043835,7]
[313328809,1707161463523,-344.7539968,0.00043835,7]
[313328810,1707161463533,-500.0,0.00043835,7]
[313328811,1707161463543,-500.0,0.00043835,7]
[313328812,1707161463553,-500.0,0.00043835,7]
[313328813,1707161463563,-500.0,0.00043835,7]
[313328814,1707161463572,-500.0,0.00043835,7]
[313328815,1707161463582,-233.42627562,0.00043835,7]
[313328816,1707161463591,-500.0,0.00043835,7]
[313328817,1707161463601,-500.0,0.00043835,2]
[313328818,1707161463610,-1171.91,0.00043835,7]
[313328819,1707161463620,-500.0,0.00043835,7]
[313328820,1707161463629,-500.0,0.00043835,7]
[313328821,1707161463638,-208.86632302,0.00043835,7]
[313328822,1707161463648,-1193.87,0.00043835,7]
[313328823,1707161463657,-579.7,0.00043835,7]
[313328824,1707161463667,-1047.76,0.00043835,7]
[313328825,1707161463676,-500.0,0.00043835,7]
[313328826,1707161463685,-1195.13,0.00043835,7]
[313328827,1707161463694,-500.0,0.00043835,7]
[313328828,1707161463704,-968.9,0.00043835,7]
[313328829,1707161463713,-500.0,0.00043835,7]
[313328830,1707161463722,-500.0,0.00043835,7]
[313328831,1707161463731,-500.0,0.00043835,7]
[313328832,1707161463741,-500.0,0.00043835,2]
[313328833,1707161463751,-500.0,0.00043835,7]
[313328834,1707161463760,-928.39,0.00043835,7]
[313328835,1707161463770,-500.0,0.00043835,7]
[313328836,1707161463779,-898.8,0.00043835,7]
[313328837,1707161463788,-1227.72,0.00043835,7]
[313328838,1707161463798,-500.0,0.00043835,7]
[313328839,1707161463808,-961.96,0.00043835,7]
[313328840,1707161463817,-856.15,0.00043835,7]
[313328841,1707161463827,-831.33,0.00043835,7]
[313328842,1707161463837,-610.16,0.00043835,7]
[313328843,1707161463846,-500.0,0.00043835,7]
[313328844,1707161463856,-4208.35,0.00043835,7]
[313328845,1707161463866,-500.0,0.00043835,7]
[313328846,1707161463875,-500.0,0.00043835,7]
[313328847,1707161463885,-2424.94,0.00043835,7]
[313328848,1707161463894,-1147.57,0.00043835,7]
[313328849,1707161463904,-719.89,0.00043835,7]
[313328850,1707161463913,-872.38,0.00043835,7]
[313328851,1707161463922,-500.0,0.00043835,7]
[313328852,1707161463932,-500.0,0.00043835,7]
[313328853,1707161463941,-500.0,0.00043835,7]
[313328854,1707161463952,-500.0,0.00043835,7]
[313328855,1707161463961,-3479.72,0.00043835,7]
[313328856,1707161463970,-524.2,0.00043835,7]
[313328857,1707161463980,-752.35,0.00043835,7]
[313328858,1707161463989,-500.0,0.00043835,7]
[313328859,1707161463998,-1792.12,0.00043835,7]
[313328860,1707161464008,-614.92,0.00043835,7]
[313328861,1707161464017,-689.61,0.00043835,7]
[313328862,1707161464027,-663.67,0.00043835,7]
[313328863,1707161464038,-500.0,0.00043835,7]
[313328864,1707161464048,-1447.39,0.00043835,7]
[313328865,1707161464058,-500.0,0.00043835,7]
[313328866,1707161464067,-2445.56,0.00043835,7]
[313328867,1707161464077,-1389.3,0.00043835,7]
[313328868,1707161464088,-2095.64,0.00043835,7]
[313328869,1707161464101,-500.0,0.00043835,7]
[313328870,1707161464110,-500.0,0.00043835,7]
[313328871,1707161464120,-500.0,0.00043835,7]
[313328872,1707161464130,-1082.37,0.00043835,7]
[313328873,1707161464139,-2824.19,0.00043835,7]
[313328874,1707161464148,-903.41,0.00043835,7]
[313328875,1707161464157,-1032.35,0.00043835,7]
[313328876,1707161464168,-4354.94,0.00043835,7]
[313328877,1707161464179,-500.0,0.00043835,7]
[313328878,1707161464189,-500.0,0.00043835,7]
[313328879,1707161464198,-668.9,0.00043835,7]
[313328880,1707161464208,-607.08,0.00043835,7]
[313328881,1707161464217,-996.39,0.00043835,7]
[313328882,1707161464226,-500.0,0.00043835,7]
[313328883,1707161464237,-500.0,0.00043835,7]
[313328884,1707161464246,-568.52,0.00043835,7]
[313328885,1707161464255,-500.0,0.00043835,7]
[313328886,1707161464264,-2415.07,0.00043835,7]
[313328887,1707161464273,-445.64971397,0.00043835,7]
[313328888,1707161464283,-1484.19,0.00043835,7]
[313328889,1707161464292,-831.07,0.00043835,7]
[313328890,1707161464302,-543.21,0.00043835,7]
[313328891,1707161464311,-3180.88,0.00043835,7]
[313328892,1707161464321,-784.02,0.00043835,7]
[313328893,1707161464329,-1184.54,0.00043835,7]
[313328894,1707161464339,-500.0,0.00043835,7]
[313328895,1707161464348,-520.58,0.00043835,7]
[313328896,1707161464358,-1320.35,0.00043835,7]